Cogmind - Beta 15 @@@ ROGUE MODE // 2025.10.17 @ 21:52:25 Player: kat Result: Destroyed by Y-45 Defender with Beam Rifle Performance ------------- Evolutions (2) 1000 Regions Visited (3) 600 Robots Destroyed (25) 125 Value Destroyed (492) 492 Prototype IDs (2) 40 Alien Tech Used (0) 0 Bonus (0) 0 TOTAL SCORE: 2257 Bonus ------- None Cogmind --------- Core Integrity 0/550 Matter 280/300 Energy 91/100 System Corruption 0% Temperature Cool (9) Movement Core (50) Location -8/Materials Parts ------- > --- POWER (1) -------- (None) > --- PROPULSION (3) --- (None) > --- UTILITY (5) ------ Advanced Visual Processing Unit Target Analyzer > --- WEAPON (2) ------- Katana > --- INVENTORY (5) ---- Cesium-ion Thruster Cesium-ion Thruster Cesium-ion Thruster Target Analyzer Target Analyzer Peak State ------------ > --- POWER ------------ Improved Ion Engine > --- PROPULSION ------- Flight Unit Cesium-ion Thruster Cesium-ion Thruster > --- UTILITY ---------- Small Storage Unit Advanced Weight Redist. System Target Analyzer Particle Charger Reaction Control System > --- WEAPON ----------- Beam Rifle Pulse Rifle > --- INVENTORY -------- Cesium-ion Thruster Cesium-ion Thruster Target Analyzer Target Analyzer Reaction Control System Hacking Suite Beam Rifle Autogun [Rating: 29] Favorites ----------- Power Ion Engine Engine Ion Engine Propulsion Flight Unit Leg Aluminum Leg Flight Unit Flight Unit Utility Small Storage Unit Device Advanced Weight Redist. System Storage Small Storage Unit Processor Target Analyzer Protection Light Armor Plating Weapon EM Pulse Gun Energy Gun EM Pulse Gun Energy Cannon Beam Cannon Ballistic Gun Shotgun Slashing Weapon Katana Build | -11 -10 -9 -8 ------- Run | Yrd Mat Mat Mat Slots Evolved 4 | . . 2 2 Power . | . . . . Propulsion 1 | . . . 1 Utility 3 | . . 2 1 Weapon . | . . . . Parts Attached 27 | 4 3 13 7 Power 2 | 1 . 1 . Engine 2 | 1 . 1 . Core . | . . . . Reactor . | . . . . Propulsion 7 | 2 . 3 2 Treads . | . . . . Leg 2 | 2 . . . Wheel . | . . . . Hover . | . . . . Flight 5 | . . 3 2 Utility 8 | . 2 3 3 Device 4 | . . 2 2 Storage 1 | . 1 . . Processor 2 | . . 1 1 Hackware . | . . . . Protection 1 | . 1 . . Artifact . | . . . . Weapon 10 | 1 1 6 2 Energy Gun 3 | 1 . 1 1 Energy Cannon 1 | . 1 . . Ballistic Gun 5 | . . 5 . Ballistic Cannon . | . . . . Launcher . | . . . . Special Weapon . | . . . . Impact Weapon . | . . . . Slashing Weapon 1 | . . . 1 Piercing Weapon . | . . . . Special Melee Weapon . | . . . . Unidentified Prototypes . | . . . . Parts Lost 12 | . . 2 10 Power 1 | . . . 1 Propulsion 4 | . . 1 3 Utility 4 | . . . 4 Weapon 3 | . . 1 2 Highest Loss Streak 10 | . . 2 10 To Critical Strikes . | . . . . Average Backups 6 | 1 4 7 7 Power . | . . . . Propulsion 1 | . . 1 2 Utility 2 | . 1 4 3 Weapon 2 | 1 2 2 1 Tool/Special . | . . . . Unused Backups 12 | . . 3 9 Power . | . . . . Propulsion 2 | . . . 2 Utility 5 | . . 1 4 Weapon 5 | . . 2 3 Tool/Special . | . . . . Average Slot Usage (%) 85 | . 85 91 77 Engine 11 | . 14 11 7 Leg 11 | . 28 2 . Flight 12 | . . 19 19 Device 10 | . . 13 19 Storage 7 | . 5 11 7 Processor 5 | . . 9 9 Protection 6 | . 12 3 . Energy Gun 9 | . 14 2 12 Energy Cannon 4 | . 10 1 . Ballistic Gun 5 | . . 17 . Peak Build Rating 29 | 4 8 20 29 Average Rating 12 | 3 6 15 21 On Entrance 7 | . 4 8 18 Naked Turns . | . . . . Heaviest Build 22 | 7 18 18 22 Greatest Support 22 | 20 20 20 22 Greatest Overweight (x) 2 | 2 . . 2 Average Overweight (x) . | . . . . Largest Inventory Capacity 8 | 5 8 8 8 Average Capacity 6 | 5 6 8 7 Most Carried 8 | 3 8 8 8 Average Carried 6 | 1 4 7 7 Final Capacity 8 | 5 8 8 5 Final Carried 8 | 3 8 8 5 Class Distribution -------------------- 76% | Mutant 23% | Scavenger-Mutant Dominant Class ---------------- Mutant | -10/Materials Mutant | -9/Materials Scavenger-Mutant | -8/Materials Resources | -11 -10 -9 -8 ----------- Run | Yrd Mat Mat Mat Matter Collected 662 | 209 61 318 74 Remotely . | . . . . Salvage Created 787 | . 303 321 163 Parts 55 | . 24 22 9 Haulers Intercepted . | . . . . Recyclers Shooed 3 | . 3 . . Parts Field Recycled . | . . . . Retrieved Matter . | . . . . Parts Self-Destructed . | . . . . Prevented . | . . . . Kills | -11 -10 -9 -8 ------- Run | Yrd Mat Mat Mat Combat Hostiles Destroyed 15 | . 4 10 1 Guns 14 | . 3 10 1 AOE 1 | . 1 . . Classes Destroyed 9 | . 5 2 2 Worker 1 | . . 1 . Builder 1 | . . . 1 Recycler 3 | . 2 . 1 Operator 3 | . 2 1 . Watcher 2 | . 2 . . Swarmer 7 | . 3 4 . Grunt 4 | . 1 3 . Duelist 1 | . . . 1 Sentry 3 | . . 3 . Best Kill Streak 7 | . 7 5 2 Combat Bots Only 4 | . 3 4 1 Max Kills in Single Turn 2 | . 2 2 2 Gunslinging . | . . . . Exploded 1 | . 1 . . Melee . | . . . . Uniques/NPCs Destroyed . | . . . . Combat | -11 -10 -9 -8 -------- Run | Yrd Mat Mat Mat Hostile Shots Fired 199 | . 28 57 114 Missed 67 | . 8 23 36 Hits 132 | . 20 34 78 Melee 2 | . . . 2 Projectile 130 | . 20 34 76 AOE 1 | . . 1 . Critical Strikes 2 | . . . 2 Damage Taken 1764 | . 192 500 1072 Core 674 | . 18 102 554 Absorbed by Shields . | . . . . Core Remaining (%) 88 | 100 92 74 . Volleys Fired 81 | . 35 33 13 Largest 2 | . 1 2 2 Hottest 119 | . 60 79 119 Shots Fired 116 | . 35 62 19 Gun 112 | . 31 62 19 Cannon 4 | . 4 . . Launcher . | . . . . Special . | . . . . Kinetic 61 | . . 61 . Thermal 24 | . 4 1 19 Explosive . | . . . . Electromagnetic 31 | . 31 . . Robot Hit Streak 14 | . 6 14 5 Robot Miss Streak 8 | . 3 8 3 Penetration Max . | . . . . Secondary Targets . | . . . . Shots Hit Robots 72 | . 23 37 12 Core Hits 38 | . 13 20 5 Critical Kills . | . . . . Critical Parts Destroyed 1 | . . 1 . Critical Strikes 4 | . 1 1 2 Burn 1 | . . . 1 Destroy 1 | . . 1 . Corrupt 1 | . 1 . . Sever 1 | . . . 1 Melee Attacks 3 | . . . 3 Impact . | . . . . Slashing 3 | . . . 3 Piercing . | . . . . Sneak Attacks . | . . . . Combat Hostiles . | . . . . Follow-up Attacks . | . . . . Damage Inflicted 1339 | . 469 620 250 Guns 1116 | . 279 620 217 Cannons 34 | . 34 . . Explosions 156 | . 156 . . Melee 33 | . . . 33 Ramming . | . . . . Kinetic 620 | . . 620 . Thermal 407 | . 190 . 217 Explosive . | . . . . Electromagnetic 279 | . 279 . . Impact . | . . . . Slashing 33 | . . . 33 Piercing . | . . . . Highest Corruption 4 | . 4 . . Average Corruption 3 | . 3 . . Corruption Purged . | . . . . Corruption Blocked . | . . . . Overload Shots . | . . . . Overflow Damage . | . . . . Projectiles . | . . . . Explosions . | . . . . Melee . | . . . . Knockbacks . | . . . . Impact . | . . . . Kinetic . | . . . . Secondary . | . . . . Self-Inflicted Damage . | . . . . Shots . | . . . . Rammed . | . . . . Targets Rammed . | . . . . Kicked . | . . . . Crushed . | . . . . Highest Temperature 415 | . 74 15 415 Average Temperature 73 | . 29 4 163 Received Heat Transfer 558 | . 48 114 396 Effects 1 | . . . 1 Shutdowns 1 | . . . 1 Siege Activations . | . . . . Martial Activations . | . . . . Shielding Activations . | . . . . Robots Disrupted . | . . . . Combat Hostiles . | . . . . Robots Corrupted . | . . . . Combat Hostiles . | . . . . Parts Fried 2 | . 2 . . Impact Corruptions . | . . . . Robots Melted . | . . . . Combat Hostiles . | . . . . Parts Melted . | . . . . Heat Transferred 829 | . 274 . 555 Parts Sabotaged . | . . . . Parts Stolen . | . . . . Parts Stripped . | . . . . Power Chain Reactions 2 | . 2 . . Alert | -11 -10 -9 -8 ------- Run | Yrd Mat Mat Mat Maximum Alert Level 1 | . . 1 . Low Security (%) 97 | 100 100 93 100 Level 1 2 | . . 6 . Level 2 . | . . . . Level 3 . | . . . . Level 4 . | . . . . Level 5 . | . . . . High Security . | . . . . Max Security . | . . . . Peak Influence 205 | . 75 205 81 Initial 81 | . . 18 81 Average 48 | . 25 91 37 Influence Increases 567 | . 131 335 101 Destroy 0b10 Robot/C 300 | . 80 200 20 Destroy 0b10 Robot/NC 50 | . 30 10 10 Destroy Leader 74 | . 14 50 10 Successful Hack 1 | . . . 1 Destroy Structure 7 | . 7 . . Partial Spotted 30 | . . 30 . Lose Combat Pursuer 105 | . . 45 60 Influence Decreases 517 | . 87 184 246 Entered New Map 140 | . . 26 114 Time Decay 315 | . 87 138 90 Lost Part 62 | . . 20 42 Squads Dispatched 4 | . 1 1 2 Investigation . | . . . . Extermination . | . . . . Reinforcement 4 | . 1 1 2 Assault . | . . . . Garrison . | . . . . Intercept . | . . . . Searches Triggered . | . . . . Construction Impeded . | . . . . Haulers Reinforced . | . . . . Active Scanning Responses . | . . . . Cargo Convoy Interrupts . | . . . . Stealth | -11 -10 -9 -8 --------- Run | Yrd Mat Mat Mat Distress Signals 4 | . 1 3 . Communications Jammed . | . . . . Distress Signals . | . . . . Times Spotted 49 | . 11 22 16 Peak Tracking Total 11 | . 5 8 11 Tactical Retreats 4 | . . 3 1 Traps | -11 -10 -9 -8 ------- Run | Yrd Mat Mat Mat Traps Triggered 3 | . 2 1 . Indirectly . | . . . . Trap Hack Attempts . | . . . . Triggered . | . . . . Disarmed . | . . . . Reprogrammed . | . . . . Reused . | . . . . Traps Extracted . | . . . . Installed . | . . . . Triggered . | . . . . Machines | -11 -10 -9 -8 ---------- Run | Yrd Mat Mat Mat Machines Disabled . | . . . . Max in Single Turn . | . . . . Machines Repaired . | . . . . Machines Dismantled . | . . . . Machines Sabotaged . | . . . . Overloaded Fab Kills . | . . . . Hacking | -11 -10 -9 -8 --------- Run | Yrd Mat Mat Mat Machines Accessed 6 | . 2 2 2 Terminals 5 | . 2 2 1 Fabricators . | . . . . Repair Stations . | . . . . Recycling Units . | . . . . Scanalyzers 1 | . . . 1 Garrison Access . | . . . . Total Hacks 12 | . 3 2 7 Successful 9 | . 1 2 6 Failed 3 | . 2 . 1 Catastrophic . | . . . . Database Lockouts . | . . . . Manual 6 | . 5 1 . Terminals 7 | . 3 2 2 Fabricators . | . . . . Repair Stations . | . . . . Recycling Units . | . . . . Scanalyzers 5 | . . . 5 Garrison Access . | . . . . Terminal Hacks 4 | . . 2 2 Record 1 | . . 1 . Prototype ID Bank 1 | . . . 1 Alert Level 1 | . . 1 . Hauler Manifests 1 | . . . 1 Fabricator Hacks . | . . . . Repair Station Hacks . | . . . . Recycling Unit Hacks . | . . . . Scanalyzer 4 | . . . 4 Insert Component 2 | . . . 2 Analyze 2 | . . . 2 Garrison Access Hacks . | . . . . Unauthorized Hacks 1 | . 1 . . Terminals 1 | . 1 . . Track 1 | . 1 . . Fabricators . | . . . . Repair Stations . | . . . . Recycling Units . | . . . . Scanalyzers . | . . . . Garrison Access . | . . . . Data Cores Recovered 1 | . 1 . . Used . | . . . . Hacking Detections 7 | . 3 2 2 Full Trace Events . | . . . . Feedback Events . | . . . . Feedback Blocked . | . . . . Robot Schematics Acquired . | . . . . Robots Built . | . . . . Authchips . | . . . . Time . | . . . . Total Robot Build Rating . | . . . . Part Schematics Acquired 2 | . . . 2 Parts Built . | . . . . Authchips . | . . . . Time . | . . . . Total Part Build Rating . | . . . . Parts Repaired . | . . . . Time . | . . . . Parts Recycled . | . . . . Recycled Matter . | . . . . Retrieved Matter . | . . . . Retrieved Components . | . . . . Parts Scanalyzed 2 | . . . 2 Part Schematics Acquired 2 | . . . 2 Parts Damaged . | . . . . Bothacking | -11 -10 -9 -8 ------------ Run | Yrd Mat Mat Mat Used RIF Installer . | . . . . Robots Hacked . | . . . . Non-combat . | . . . . Combat . | . . . . Robot Hacks Applied . | . . . . Relay Couplers Released . | . . . . Fabnet Peak Effective % . | . . . . Robots Rewired . | . . . . Allies Hacked . | . . . . Hacks Repelled . | . . . . Allies | -11 -10 -9 -8 -------- Run | Yrd Mat Mat Mat Total Allies . | . . . . Largest Group . | . . . . Highest-Rated Group . | . . . . Highest-Rated Ally . | . . . . Total Orders . | . . . . Ally Attacks . | . . . . Total Damage . | . . . . Kills . | . . . . Allies Corrupted . | . . . . Allies Melted . | . . . . Intel | -11 -10 -9 -8 ------- Run | Yrd Mat Mat Mat Active Infowar (turns) 3 | . . . 3 Optics 3 | . . . 3 Robot Analysis Total . | . . . . Derelict Logs Recovered . | . . . . Drone Launches . | . . . . Drone Recoveries . | . . . . Exploration | -11 -10 -9 -8 ------------- Run | Yrd Mat Mat Mat Turns Passed 953 | 61 338 307 247 Spaces Moved 802 | 46 204 357 195 Core 84 | 7 . . 77 Treads . | . . . . Legs 260 | 39 204 17 . Wheels . | . . . . Hover . | . . . . Flight 458 | . . 340 118 Fastest Speed 32 | 50 120 37 32 Average Speed 69 | 114 120 40 58 Slowest Speed 194 | 150 120 120 194 Overloaded Moves . | . . . . Propulsion Burnouts . | . . . . Robots Hopped 1 | . . 1 . Potential Cave-ins . | . . . . Cave-ins Triggered . | . . . . Exploration Rate (%) 25 | 3 38 33 28 Regions Visited 3 Branch Regions . Pre-discovered Areas . | . . . . Known Exits Taken . | . . . . Unknown Exits Taken 3 | 1 1 1 . Scrap Searched . | . . . . Spaces Dug . | . . . . Terrain Destroyed 6 | . 6 . . Melee . | . . . . Projectile . | . . . . AOE 6 | . 6 . . Terrain Rammed . | . . . . Walls Destroyed . | . . . . Machines Disabled . | . . . . Actions | -11 -10 -9 -8 --------- Run | Yrd Mat Mat Mat Total 1075 | 52 261 459 303 Wait 123 | . 14 36 73 Move 797 | 45 203 354 195 Hop 1 | . . 1 . Pick Up 22 | 3 6 9 4 Fast Attach 16 | 4 2 4 6 Attach 5 | . 1 4 . Detach . | . . . . Swap 8 | . . 6 2 Drop 19 | . . 12 7 Fire 81 | . 35 33 13 Melee 3 | . . . 3 Ram . | . . . . Kick . | . . . . Crush . | . . . . Escape Stasis . | . . . . Rewire . | . . . . Trap . | . . . . Miscellaneous . | . . . . Route ------- -11/Scrapyard -10/Materials -9/Materials -8/Materials History --------- Turn | Location | Event 9 | -11/Scrapyard | Discovered new exit (range 15) 62 | -11/Scrapyard | Entered Materials 313 | -10/Materials | Build established: Mutant 325 | -10/Materials | Discovered new exit (range 13) 400 | -10/Materials | Entered another Materials area 400 | -9/Materials | Evolved 2 slots: Utility x2 701 | -9/Materials | Discovered new exit (range 16) 707 | -9/Materials | Entered another Materials area 707 | -8/Materials | Evolved 2 slots: Propulsion x1, Utility x1 906 | -8/Materials | Core integrity fell below 50% 936 | -8/Materials | Lost 10 parts (1p3n4u2w) 940 | -8/Materials | Core integrity fell below 20% 954 | -8/Materials | Destroyed by Y-45 Defender with Beam Rifle Last Messages --------------- 00900_ Dropped Beam Rifle. 00901_ Cesium-ion Thruster destroyed. 00902_ R-06 Scavenger collects Lgt. Assault Rifle. 00902_ Sml. Storage Unit destroyed. 00902_ Imp. Ion Engine destroyed. 00905_ R-06 Scavenger collects Reaction Control System. 00905_ Adv. Weight Redist. System destroyed. 00905_ R-06 Scavenger destroyed. 00918_ O-16 Technician: "IFF HANDSHAKE FAILED. SECURING TERMINAL." 00921_ O-16 Technician uses terminal to summon reinforcements. 00921_ ALERT: Hostiles spotted, dispatching reinforcements to Terminal M010. 00921_ O-16 Technician locks terminal. 00922_ Acquired Katana. 00925_ K-01 Serf collects debris. 00941_ S-10 Pest Lgt. Ion Engine severed. 00951_ Acquired Adv. Visual Processing Unit. Map ----- +----------------------------------------------------+ | ##?# +????????# #??????????????????????????? | | ???# #????????# #??????????????????????????? | | ???# #????????# #??????????????????????????? | | ???# #????????# #??????????????????????????? | | ???# #????????# ########+#?????????????????? | | ???# #????????# #?????????????????? | | ???# #????????# #?????????????????? | | ???? ?????????# """ */#?????????????????? | | ???? ?????? ""R" /#?###############?? | | ???? ??? "" " ### # #?? | | ???????? # !! ! #?? | | ??????? + !! #?? | | ?????? #######+## # #?? | | ??????####### #???? ## ## #?? | | ????????????###+####?? "T" ## ## """ #?? | | ?????????????????????# ## ## """ #?? | | ?????????????????????# ## ## """ #? | | ?????????????????????# ## ## #?? | | ?????????????????????# # ##+#######?? | | ?????????????????????######## #?????? | | ????????????????????????????# /Y * #?????? | | ????????????????????????????# ##/#######?? | | ????????????????????????######s### #?? | | ????????????????????????# T # ! #?? | | ????????????????????????# Y # #?? | | ????????????????????????#@ [ # #?? | | ????????????????????????# # #?? | | ????????????????????????# + [ #?? | | ????????????????????????# """ # #?? | | ????????????????????????# """ *# | #?? | | ????????????????????????# s""" # #?? | | ????????????????????????#/ ##########?? | | ????????????????????????##########??????????? | | | | | | | | | | | | | | | | | | | | | | | | | | | | | | | | | | | +----------------------------------------------------+ Best States ------------- Heat Dissipation 31 Energy Generation 12 Energy Capacity 265 Matter Stores 300 Matter Capacity 300 Sight Range 16 Terrain Scan Density 10 Additional Mass Support 9 Armor Coverage 150 Evasion (%) 71 Target Analysis 5 Particle Charging 15 Item Schematics ----------------- Hacking Suite | -8/Materials | Scanalyzed Cesium-ion Thruster | -8/Materials | Scanalyzed Robot Schematics ------------------ None Fabricated ------------ Nothing Repaired ---------- Nothing Alien Tech Used ----------------- None Achievements -------------- None Challenges ------------ None Game ------ Seed FlyingAccelerationWeb Manual? 0 Play Time 00:22:39 Cumulative 29.1 hours Start 2025.10.17 @ 14:44:45 End 2025.10.17 @ 21:52:25 Sessions 3 Manual Loads 0 Difficulty Rogue Special Mode None Game No. 39 Rogue 38 Adventurer 1 Explorer 0 Win Type - Total 0 Types 0/0/0/0/0/0/0/0/0/0 Lore% 24 Gallery% 25 Achievement% 26 Wizard Run 0 Options --------- Layout 1 ASCII 0 Keyboard 0 Movement Mouse Keybinds 0 Fullscreen 1 Font 20/SmallcapsGlow Map View 54x42 Zoom Use 0% Tactical HUD 1 Map Filters NONE Filters NONE Steam 1 RUN: ce20334e-052e-4eb8-9572-ded02dc668c4